[Event "Schachfestival Open-B 2018"]
[Site "Lueneburg"]
[Date "2018.07.09"]
[Round "3"]
[White "Paufler, Patrick"]
[Black "Brockmann, Marc"]
[Result "1-0"]
[ECO "D02"]
[WhiteElo "1626"]
[BlackElo "1710"]
[Annotator "NA"]
[PlyCount "72"]
[EventDate "2018.07.06"]
[EventType "swiss"]
[EventCountry "GER"]
[SourceTitle "playchess.com"]
[Source "ChessBase"]
[SourceQuality "1"]
[TimeControl "40/5400+30:1800+30"]

1. d4 {[%emt 0:00:00]} d5 {[%emt 0:00:00]} 2. Nf3 {[%emt 0:00:00]} Nf6 {[%emt 0:00:00]} 3. Bf4 {[%emt 0:00:06]} Bf5 {[%emt 0:00:00]} 4. e3 {[%emt 0:00:28]} e6 {[%emt 0:00:02]} 5. c4 {[%emt 0:00:41]} c5 {[%emt 0:03:16]} 6. Nc3 {[%emt 0:02:29]} Nc6 {[%emt 0:03:43]} 7. dxc5 {[%emt 0:03:07]} dxc4 {[%emt 0:06:39]} 8. Bxc4 {[%emt 0:10:02]} Bxc5 {[%emt 0:05:52]} 9. O-O {[%emt 0:01:45]} O-O {[%emt 0:00:28]} 10. h3 {[%emt 0:07:03]} h6 {[%emt 0:02:10]} 11. Rc1 {[%emt 0:10:07]} Ne4 {[%emt 0:07:47]} 12. Nxe4 {[%emt 0:02:46]} Bxe4 {[%emt 0:02:52]} 13. Qe2 {[%emt 0:04:45]} Qe7 {[%emt 0:03:48]} 14. Rfd1 {[%emt 0:15:03]} Rfd8 {[%emt 0:02:18]} 15. Ne5 {[%emt 0:07:25]} Nxe5 {[%emt 0:11:20]} 16. Bxe5 {[%emt 0:00:12]} Qg5 {[%emt 0:03:59]} 17. Bg3 {[%emt 0:00:09]} Bd6 {[%emt 0:07:50]} 18. Rd4 {[%emt 0:14:38]} Bc6 {[%emt 0:10:52]} 19. Rg4 {[%emt 0:01:48]} Qa5 {[%emt 0:15:12]} 20. Bxd6 {[%emt 0:02:38]} Rxd6 {[%emt 0:00:17]} 21. Rd1 {[%emt 0:06:24]} Rad8 {[%emt 0:00:10]} 22. Rgd4 {[%emt 0:00:24]} Rxd4 {[%emt 0:01:18]} 23. Rxd4 {[%emt 0:00:07]} Rxd4 {[%emt 0:00:08]} 24. exd4 {[%emt 0:00:05]} Qg5 {[%emt 0:00:31]} 25. Qf1 {[%emt 0:02:05]} Bd5 {[%emt 0:00:46]} 26. Bxd5 {[%emt 0:01:44]} Qxd5 {[%emt 0:00:04]} 27. Qc1 {[%emt 0:00:37]} Qd7 {[%emt 0:01:18]} 28. Qc5 {[%emt 0:00:43]} b6 {[%emt 0:00:52]} 29. Qe5 {[%emt 0:00:27]} Kf8 {[%emt 0:01:10]} 30. Qb8+ {[%emt 0:01:20]} Ke7 {[%emt 0:00:07]} 31. Qe5 {[%emt 0:00:08]} g6 {[%emt 0:00:54]} 32. Qe3 {[%emt 0:00:25]} h5 {[%emt 0:00:11]} 33. Qg5+ {[%emt 0:00:12]} Ke8 {[%emt 0:00:28]} 34. Qe5 {[%emt 0:00:38]} Ke7 {[%emt 0:00:34]} 35. Qg5+ {[%emt 0:00:10]} Ke8 {[%emt 0:02:23]} 36. Qe5 Qd8 1-0

[Event "Schachfestival Open-B 2018"]
[Site "Lueneburg"]
[Date "2018.07.09"]
[Round "3"]
[White "Bildat, Emilia"]
[Black "Haerig, Wolfram"]
[Result "1-0"]
[ECO "A22"]
[WhiteElo "1512"]
[BlackElo "1724"]
[Annotator "NA"]
[PlyCount "106"]
[EventDate "2018.07.06"]
[EventType "swiss"]
[EventCountry "GER"]
[SourceTitle "playchess.com"]
[Source "ChessBase"]
[SourceQuality "1"]
[TimeControl "40/5400+30:1800+30"]

1. c4 {[%emt 0:00:00]} e5 {[%emt 0:10:37]} 2. Nc3 {[%emt 0:00:00]} Nf6 {[%emt 0:00:28]} 3. g3 {[%emt 0:00:00]} Be7 {[%emt 0:00:40]} 4. Bg2 {[%emt 0:00:02]} O-O {[%emt 0:00:08]} 5. d3 {[%emt 0:00:31]} c6 {[%emt 0:01:22]} 6. Nf3 {[%emt 0:00:32]} d6 {[%emt 0:00:09]} 7. O-O {[%emt 0:00:21]} Bg4 {[%emt 0:00:27]} 8. b3 {[%emt 0:00:54]} Nbd7 {[%emt 0:00:28]} 9. Bb2 {[%emt 0:00:26]} Re8 {[%emt 0:01:42]} 10. h3 {[%emt 0:01:01]} Bh5 {[%emt 0:01:01]} 11. g4 {[%emt 0:02:09]} Bg6 {[%emt 0:04:09]} 12. Nh4 {[%emt 0:00:38]} Nf8 {[%emt 0:00:47]} 13. Nxg6 {[%emt 0:01:05]} Nxg6 {[%emt 0:00:06]} 14. e3 {[%emt 0:00:35]} h6 {[%emt 0:01:26]} 15. Ne2 {[%emt 0:01:07]} Qb6 {[%emt 0:01:29]} 16. d4 {[%emt 0:02:10]} Rad8 {[%emt 0:01:10]} 17. Qc2 {[%emt 0:00:33]} Rd7 {[%emt 0:06:28]} 18. Rfd1 {[%emt 0:03:53]} Red8 {[%emt 0:00:38]} 19. dxe5 {[%emt 0:01:00]} dxe5 {[%emt 0:01:27]} 20. Rxd7 {[%emt 0:00:45]} Rxd7 {[%emt 0:00:01]} 21. Rd1 {[%emt 0:00:16]} Qd8 {[%emt 0:01:14]} 22. Nc3 {[%emt 0:01:06]} Rxd1+ {[%emt 0:00:41]} 23. Qxd1 {[%emt 0:00:07]} Qxd1+ {[%emt 0:00:24]} 24. Nxd1 {[%emt 0:00:06]} Kf8 {[%emt 0:07:43]} 25. Nc3 {[%emt 0:01:33]} Nd7 {[%emt 0:02:26]} 26. Ne4 {[%emt 0:02:10]} Ke8 {[%emt 0:02:28]} 27. Kf1 {[%emt 0:01:24]} Nh4 {[%emt 0:00:29]} 28. Bh1 {[%emt 0:00:27]} g5 {[%emt 0:01:26]} 29. Ng3 {[%emt 0:01:31]} f6 {[%emt 0:00:38]} 30. Nh5 {[%emt 0:02:55]} Kf7 {[%emt 0:04:27]} 31. f4 {[%emt 0:05:09]} Bd6 {[%emt 0:03:59]} 32. f5 {[%emt 0:01:09]} Bb4 {[%emt 0:00:27]} 33. a3 {[%emt 0:02:17]} Be7 {[%emt 0:00:49]} 34. b4 {[%emt 0:01:52]} Nb6 {[%emt 0:00:26]} 35. c5 {[%emt 0:00:22]} Nc4 {[%emt 0:00:57]} 36. Bc1 {[%emt 0:00:35]} a5 {[%emt 0:01:15]} 37. Ke2 {[%emt 0:01:00]} axb4 {[%emt 0:01:38]} 38. axb4 {[%emt 0:00:16]} e4 {[%emt 0:02:26]} 39. Bxe4 {[%emt 0:01:11]} Ne5 {[%emt 0:00:02]} 40. Bb2 {[%emt 0:01:42]} Bd8 {[%emt 0:00:55]} 41. Bxe5 {[%emt 0:30:29]} fxe5 {[%emt 0:30:05]} 42. Kd3 {[%emt 0:00:10]} Bc7 {[%emt 0:00:42]} 43. Kc4 {[%emt 0:01:38]} Bd8 {[%emt 0:06:01]} 44. b5 {[%emt 0:00:32]} Ba5 {[%emt 0:01:13]} 45. bxc6 {[%emt 0:00:27]} bxc6 {[%emt 0:00:05]} 46. Bxc6 {[%emt 0:00:18]} Bd2 {[%emt 0:00:09]} 47. Bd5+ {[%emt 0:04:00]} Kf8 {[%emt 0:00:13]} 48. c6 {[%emt 0:01:24]} Ke8 {[%emt 0:02:46]} 49. Ng7+ {[%emt 0:01:19]} Ke7 {[%emt 0:00:40]} 50. Ne6 {[%emt 0:02:31]} Ba5 {[%emt 0:01:00]} 51. Kb5 {[%emt 0:00:58]} Bd8 {[%emt 0:01:13]} 52. Nxd8 {[%emt 0:00:15]} Kxd8 {[%emt 0:00:01]} 53. Kb6 {[%emt 0:00:10]} Ng6 1-0

[Event "Schachfestival Open-B 2018"]
[Site "Lueneburg"]
[Date "2018.07.10"]
[Round "4"]
[White "Kaesemann, Holger"]
[Black "Hinnenberg, Benjamin"]
[Result "0-1"]
[ECO "B06"]
[WhiteElo "1746"]
[BlackElo "1707"]
[Annotator "NA"]
[PlyCount "90"]
[EventDate "2018.07.06"]
[EventType "swiss"]
[EventCountry "GER"]
[SourceTitle "playchess.com"]
[Source "ChessBase"]
[SourceQuality "1"]
[TimeControl "40/5400+30:1800+30"]

1. e4 {[%emt 0:00:00]} g6 {[%emt 0:00:00]} 2. d4 {[%emt 0:00:20]} Bg7 {[%emt 0:00:00]} 3. c3 {[%emt 0:01:03]} d6 {[%emt 0:01:45]} 4. Nf3 {[%emt 0:03:24]} Nf6 {[%emt 0:00:47]} 5. Bd3 {[%emt 0:04:28]} O-O {[%emt 0:00:06]} 6. O-O {[%emt 0:00:23]} c5 {[%emt 0:00:05]} 7. h3 {[%emt 0:03:55]} c4 {[%emt 0:00:36]} 8. Bxc4 {[%emt 0:03:13]} Nxe4 {[%emt 0:00:09]} 9. Re1 {[%emt 0:01:06]} d5 {[%emt 0:00:50]} 10. Bb3 {[%emt 0:02:43]} Be6 {[%emt 0:02:45]} 11. Bf4 {[%emt 0:03:24]} Nc6 {[%emt 0:01:40]} 12. Nbd2 {[%emt 0:05:46]} Nd6 {[%emt 0:05:00]} 13. Ng5 {[%emt 0:05:34]} Qd7 {[%emt 0:00:33]} 14. Nxe6 {[%emt 0:02:48]} fxe6 {[%emt 0:00:02]} 15. Bh2 {[%emt 0:09:40]} Rf6 {[%emt 0:06:18]} 16. Be5 {[%emt 0:02:28]} Rf5 {[%emt 0:00:55]} 17. Bxg7 {[%emt 0:15:32]} Kxg7 {[%emt 0:00:04]} 18. Bc2 {[%emt 0:03:28]} Rf6 {[%emt 0:01:30]} 19. Re3 {[%emt 0:02:00]} Raf8 {[%emt 0:01:03]} 20. Rf3 {[%emt 0:00:39]} e5 {[%emt 0:03:21]} 21. Rxf6 {[%emt 0:02:08]} exf6 {[%emt 0:02:14]} 22. dxe5 {[%emt 0:07:03]} fxe5 {[%emt 0:02:00]} 23. Nf3 {[%emt 0:00:34]} e4 {[%emt 0:00:56]} 24. Nd4 {[%emt 0:01:36]} Qf7 {[%emt 0:00:16]} 25. Qe2 {[%emt 0:03:03]} Nxd4 {[%emt 0:01:29]} 26. cxd4 {[%emt 0:00:02]} Nf5 {[%emt 0:13:23]} 27. Rd1 {[%emt 0:00:43]} Qf6 {[%emt 0:01:02]} 28. Qd2 {[%emt 0:01:43]} Nh4 {[%emt 0:03:39]} 29. Qe3 {[%emt 0:01:48]} Nf5 {[%emt 0:01:12]} 30. Qf4 {[%emt 0:01:37]} g5 {[%emt 0:04:58]} 31. Qc7+ {[%emt 0:02:25]} Rf7 {[%emt 0:00:11]} 32. Qc3 {[%emt 0:00:16]} h5 {[%emt 0:02:44]} 33. Bb3 {[%emt 0:02:17]} Nh4 {[%emt 0:05:36]} 34. Qg3 {[%emt 0:01:55]} Rd7 {[%emt 0:14:50]} 35. Qe5 {[%emt 0:00:45]} Ng6 {[%emt 0:00:06]} 36. Qxf6+ {[%emt 0:01:43]} Kxf6 {[%emt 0:00:03]} 37. Rc1 {[%emt 0:00:22]} Nf4 {[%emt 0:00:18]} 38. Rc2 {[%emt 0:01:04]} Ne6 {[%emt 0:01:00]} 39. Rd2 {[%emt 0:00:07]} Ke7 {[%emt 0:02:11]} 40. g3 {[%emt 0:00:18]} Kd6 {[%emt 0:00:26]} 41. Kf1 {[%emt 0:30:33]} Rf7 {[%emt 0:30:47]} 42. Ke2 {[%emt 0:00:44]} h4 {[%emt 0:00:17]} 43. Bd1 {[%emt 0:00:00]} hxg3 {[%emt 0:00:00]} 44. fxg3 {[%emt 0:00:00]} Rf3 {[%emt 0:00:00]} 45. Rd3 {[%emt 0:00:00]} Rxd3 0-1

[Event "Schachfestival Open-B 2018"]
[Site "Lueneburg"]
[Date "2018.07.10"]
[Round "4"]
[White "Brockmann, Marc"]
[Black "Bildat, Emilia"]
[Result "0-1"]
[ECO "A29"]
[WhiteElo "1710"]
[BlackElo "1512"]
[Annotator "NA"]
[PlyCount "36"]
[EventDate "2018.07.06"]
[EventType "swiss"]
[EventCountry "GER"]
[SourceTitle "playchess.com"]
[Source "ChessBase"]
[SourceQuality "1"]
[TimeControl "40/5400+30:1800+30"]

1. c4 {[%emt 0:00:00]} e5 {[%emt 0:00:00]} 2. Nc3 {[%emt 0:00:00]} Nf6 {[%emt 0:00:00]} 3. Nf3 {[%emt 0:00:00]} Nc6 {[%emt 0:00:00]} 4. g3 {[%emt 0:00:00]} Bc5 {[%emt 0:00:08]} 5. Bg2 {[%emt 0:00:00]} O-O {[%emt 0:00:16]} 6. O-O {[%emt 0:00:02]} d6 {[%emt 0:00:11]} 7. e3 {[%emt 0:02:22]} Bg4 {[%emt 0:01:39]} 8. Qb3 {[%emt 0:02:28]} Rb8 {[%emt 0:05:03]} 9. h3 {[%emt 0:07:17]} Bf5 {[%emt 0:00:16]} 10. Qd1 {[%emt 0:03:03]} Bd3 {[%emt 0:01:03]} 11. Re1 {[%emt 0:04:33]} Bxc4 {[%emt 0:00:33]} 12. Qc2 {[%emt 0:10:06]} Nb4 {[%emt 0:04:25]} 13. Qa4 {[%emt 0:09:22]} b5 {[%emt 0:00:23]} 14. Qd1 {[%emt 0:01:48]} Nd3 {[%emt 0:00:38]} 15. b3 {[%emt 0:03:59]} Nxe1 {[%emt 0:01:21]} 16. bxc4 {[%emt 0:00:16]} Nxf3+ {[%emt 0:00:08]} 17. Bxf3 {[%emt 0:00:40]} bxc4 {[%emt 0:02:51]} 18. Nd5 {[%emt 0:05:47]} e4 {[%emt 0:02:42]} 0-1

[Event "Schachfestival Open-B 2018"]
[Site "Lueneburg"]
[Date "2018.07.10"]
[Round "4"]
[White "Rausch, Darius"]
[Black "Cordsen, Heinrich"]
[Result "1-0"]
[ECO "B12"]
[WhiteElo "1658"]
[BlackElo "1685"]
[Annotator "NA"]
[PlyCount "103"]
[EventDate "2018.07.06"]
[EventType "swiss"]
[EventCountry "GER"]
[SourceTitle "playchess.com"]
[Source "ChessBase"]
[SourceQuality "1"]
[TimeControl "40/5400+30:1800+30"]

1. e4 {[%emt 0:00:00]} c6 {[%emt 0:00:00]} 2. d4 {[%emt 0:00:00]} d5 {[%emt 0:00:00]} 3. e5 {[%emt 0:00:00]} Bf5 {[%emt 0:00:06]} 4. Nc3 {[%emt 0:00:00]} e6 {[%emt 0:02:11]} 5. g4 {[%emt 0:00:00]} Bg6 {[%emt 0:01:09]} 6. Nge2 {[%emt 0:00:00]} Bb4 {[%emt 0:02:03]} 7. Nf4 {[%emt 0:08:12]} Be4 {[%emt 0:03:08]} 8. f3 {[%emt 0:03:41]} Qh4+ {[%emt 0:02:21]} 9. Ke2 {[%emt 0:00:05]} Bg6 {[%emt 0:00:42]} 10. Ng2 {[%emt 0:08:50]} Qe7 {[%emt 0:02:36]} 11. h4 {[%emt 0:02:47]} h6 {[%emt 0:03:12]} 12. a3 {[%emt 0:06:36]} Bxc3 {[%emt 0:01:46]} 13. bxc3 {[%emt 0:00:06]} c5 {[%emt 0:06:10]} 14. Nf4 {[%emt 0:02:00]} Bh7 {[%emt 0:05:58]} 15. Kf2 {[%emt 0:02:12]} c4 {[%emt 0:10:41]} 16. g5 {[%emt 0:07:20]} Bf5 {[%emt 0:06:48]} 17. Nh5 {[%emt 0:08:00]} f6 {[%emt 0:14:53]} 18. f4 {[%emt 0:08:43]} Nd7 {[%emt 0:05:36]} 19. Bg2 {[%emt 0:09:42]} Qf7 {[%emt 0:04:17]} 20. exf6 {[%emt 0:03:01]} gxf6 {[%emt 0:00:53]} 21. Bf3 {[%emt 0:04:10]} O-O-O {[%emt 0:01:27]} 22. Ng3 {[%emt 0:02:31]} Ne7 {[%emt 0:11:28]} 23. h5 {[%emt 0:00:08]} hxg5 {[%emt 0:00:49]} 24. fxg5 {[%emt 0:01:16]} fxg5 {[%emt 0:01:15]} 25. Bxg5 {[%emt 0:00:29]} Rdf8 {[%emt 0:00:43]} 26. Bxe7 {[%emt 0:04:38]} Qxe7 {[%emt 0:01:50]} 27. Ke1 {[%emt 0:02:24]} Bxc2 {[%emt 0:01:00]} 28. Qe2 {[%emt 0:01:04]} Bd3 {[%emt 0:00:29]} 29. Qe3 {[%emt 0:00:07]} Rf7 {[%emt 0:01:15]} 30. Bg4 {[%emt 0:03:39]} Re8 {[%emt 0:01:41]} 31. Kd2 {[%emt 0:01:08]} Nf6 {[%emt 0:01:48]} 32. Be2 {[%emt 0:01:12]} Ne4+ {[%emt 0:00:49]} 33. Nxe4 {[%emt 0:01:04]} Bxe4 {[%emt 0:00:10]} 34. Rh3 {[%emt 0:00:50]} b5 {[%emt 0:01:31]} 35. Bf3 {[%emt 0:02:48]} Bf5 {[%emt 0:01:10]} 36. Rh2 {[%emt 0:00:28]} Qf8 {[%emt 0:01:50]} 37. h6 {[%emt 0:01:18]} Bd3 {[%emt 0:01:34]} 38. Bg4 {[%emt 0:02:11]} Be4 {[%emt 0:00:21]} 39. Bh5 {[%emt 0:01:42]} Ree7 {[%emt 0:03:02]} 40. Bxf7 {[%emt 0:00:10]} Rxf7 {[%emt 0:00:12]} 41. h7 {[%emt 0:19:35]} Qh8 {[%emt 0:07:24]} 42. Rah1 {[%emt 0:02:33]} Kd7 {[%emt 0:00:37]} 43. Rh6 {[%emt 0:02:57]} Rg7 {[%emt 0:07:51]} 44. R1h2 {[%emt 0:01:28]} Ke7 {[%emt 0:05:26]} 45. Qf4 {[%emt 0:00:18]} Kd7 {[%emt 0:01:38]} 46. Qf6 {[%emt 0:02:58]} Bf5 {[%emt 0:07:02]} 47. Kc1 {[%emt 0:05:02]} Rg1+ {[%emt 0:02:04]} 48. Kb2 {[%emt 0:02:10]} Rg7 {[%emt 0:00:19]} 49. Qxg7+ {[%emt 0:01:11]} Qxg7 {[%emt 0:00:32]} 50. h8=Q {[%emt 0:00:07]} Qg1 {[%emt 0:00:55]} 51. Rh7+ {[%emt 0:00:07]} Kc6 {[%emt 0:00:22]} 52. Qc8+ {[%emt 0:00:42]} 1-0

[Event "Schachfestival Open-B 2018"]
[Site "Lueneburg"]
[Date "2018.07.11"]
[Round "5"]
[White "Berndt, Matthias"]
[Black "Kaesemann, Holger"]
[Result "0-1"]
[ECO "D40"]
[WhiteElo "2077"]
[BlackElo "1746"]
[Annotator "NA"]
[PlyCount "114"]
[EventDate "2018.07.06"]
[EventType "swiss"]
[EventCountry "GER"]
[SourceTitle "playchess.com"]
[Source "ChessBase"]
[SourceQuality "1"]
[TimeControl "40/5400+30:1800+30"]

1. d4 {[%emt 0:00:00]} d5 {[%emt 0:00:01]} 2. c4 {[%emt 0:00:00]} e6 {[%emt 0:00:29]} 3. Nf3 {[%emt 0:01:01]} Nf6 {[%emt 0:00:09]} 4. Nc3 {[%emt 0:00:22]} c5 {[%emt 0:02:52]} 5. e3 {[%emt 0:01:34]} Nc6 {[%emt 0:01:54]} 6. a3 {[%emt 0:00:24]} cxd4 {[%emt 0:03:41]} 7. exd4 {[%emt 0:00:22]} b6 {[%emt 0:00:55] D40: Damengambit (Verbesserte Tarrasch-Verteidigung)} (7... Be7 8. Bd3 dxc4 9. Bxc4 O-O 10. O-O Nd5 11. Re1 Nxc3 12. bxc3 Bf6 13. Bd3 Bd7 14. Rb1 b6 15. Rb5 g6 16. Bh6 Re8 17. Qd2 Ne7 18. Rbe5 Bc6 19. Bg5 Bg7 20. R5e3 h6 21. Bh4 Bxf3 22. Rxf3 {½-½ (42) Salem,A (2638)-Svidler,P (2749) Geneva 2017}) 8. Bg5 {[%emt 0:00:37]} Be7 {[%emt 0:00:31]} 9. Be2 {[%emt 0:02:50]} O-O {[%emt 0:04:27]} 10. O-O {[%emt 0:00:11]} h6 $146 {[%emt 0:02:39]} ({Vorgänger:} 10... Bb7 11. Re1 dxc4 12. Bxc4 Rc8 13. Ba2 Nd5 14. h4 Bxg5 15. Nxg5 Nce7 16. Qh5 Nf6 17. Qe2 Ng6 18. Nxf7 Rxf7 19. Qxe6 Rcc7 20. Nb5 {0-1 (57) Gossell,T (2251)-Holt,C (2219) Tulsa 2008}) 11. Bh4 {[%emt 0:01:26]} Bb7 {[%emt 0:03:32]} 12. Rc1 {[%emt 0:05:28]} Rc8 {[%emt 0:07:53]} 13. cxd5 {[%emt 0:10:09]} Nxd5 {[%emt 0:04:21]} 14. Bg3 {[%emt 0:00:51]} Na5 {[%emt 0:10:39]} 15. Nxd5 {[%emt 0:08:06]} Bxd5 {[%emt 0:01:11]} 16. b4 {[%emt 0:05:49]} Rxc1 {[%emt 0:19:53]} 17. Qxc1 {[%emt 0:00:11]} Nb3 {[%emt 0:01:24]} 18. Qb2 {[%emt 0:01:06]} Bxf3 {[%emt 0:01:33]} 19. Bxf3 {[%emt 0:01:40]} Nxd4 {[%emt 0:00:26]} 20. Bg4 {[%emt 0:01:51]} Bf6 {[%emt 0:01:33]} 21. Qa2 {[%emt 0:01:08]} Qd7 {[%emt 0:04:04]} 22. f4 {[%emt 0:06:19]} Rc8 {[%emt 0:02:11]} 23. Qb1 {[%emt 0:05:27]} Qc6 {[%emt 0:04:25]} 24. Bf2 {[%emt 0:03:53]} Qc2 {[%emt 0:03:14]} 25. Bxd4 {[%emt 0:02:23]} Bxd4+ {[%emt 0:00:18]} 26. Kh1 {[%emt 0:00:06]} Be3 {[%emt 0:04:19]} 27. g3 {[%emt 0:01:40]} Rc3 {[%emt 0:02:31]} 28. Qxc2 {[%emt 0:00:54]} Rxc2 {[%emt 0:00:01]} 29. Bd1 {[%emt 0:01:51]} Rb2 {[%emt 0:01:26]} 30. Re1 {[%emt 0:03:12]} Bd4 {[%emt 0:01:44]} 31. Re4 {[%emt 0:01:04]} Rd2 {[%emt 0:00:50]} 32. Be2 {[%emt 0:02:44]} Kf8 {[%emt 0:01:05]} 33. a4 {[%emt 0:02:06]} Ke7 {[%emt 0:00:23]} 34. g4 {[%emt 0:03:04]} Kd6 {[%emt 0:01:39]} 35. Bf3 {[%emt 0:01:00]} e5 {[%emt 0:01:25]} 36. f5 {[%emt 0:02:35]} Ra2 {[%emt 0:01:05]} 37. Bd1 {[%emt 0:01:16]} Ra1 {[%emt 0:00:04]} 38. Re1 {[%emt 0:00:06]} Bc3 {[%emt 0:00:26]} 39. Rg1 {[%emt 0:00:39]} Bxb4 {[%emt 0:00:29]} 40. Bb3 {[%emt 0:00:10]} Rxg1+ {[%emt 0:01:59]} 41. Kxg1 {[%emt 0:30:12]} f6 {[%emt 0:31:02]} 42. Bc4 {[%emt 0:00:37]} Kc5 {[%emt 0:00:15]} 43. Bb5 {[%emt 0:00:12]} Kd4 {[%emt 0:00:35]} 44. Kf2 {[%emt 0:00:14]} Ke4 {[%emt 0:00:58]} 45. h3 {[%emt 0:00:38]} Kf4 {[%emt 0:00:24]} 46. Bf1 {[%emt 0:01:45]} Bc5+ {[%emt 0:01:33]} 47. Ke2 {[%emt 0:00:32]} Kg5 {[%emt 0:01:44]} 48. Kf3 {[%emt 0:00:33]} h5 {[%emt 0:01:20]} 49. Bd3 {[%emt 0:00:48]} hxg4+ {[%emt 0:01:16]} 50. hxg4 {[%emt 0:00:09]} Kh4 {[%emt 0:00:00]} 51. Be2 {[%emt 0:00:00]} Kh3 {[%emt 0:00:00]} 52. Bd1 $17 {[%emt 0:00:00]} Kh2 {[%emt 0:00:00]} 53. Ke4 {[%emt 0:00:00]} Kg3 {[%emt 0:00:00]} 54. g5 {[%emt 0:00:00]} fxg5 {[%emt 0:00:00]} 55. Kxe5 {[%emt 0:00:00]} g4 {[%emt 0:00:00]} 56. Ke4 {[%emt 0:00:00]} Kh3 {[%emt 0:00:00]} 57. Kf4 {[%emt 0:00:00]} g3 {[%emt 0:00:00]} 0-1

[Event "Schachfestival Open-B 2018"]
[Site "Lueneburg"]
[Date "2018.07.11"]
[Round "5"]
[White "Brockmann, Marc"]
[Black "Kertesz, Oliver"]
[Result "1/2-1/2"]
[ECO "A10"]
[WhiteElo "1710"]
[BlackElo "1703"]
[Annotator "NA"]
[PlyCount "81"]
[EventDate "2018.07.06"]
[EventType "swiss"]
[EventCountry "GER"]
[SourceTitle "playchess.com"]
[Source "ChessBase"]
[SourceQuality "1"]
[TimeControl "40/5400+30:1800+30"]

1. c4 {[%emt 0:00:00]} f5 {[%emt 0:00:00]} 2. Nc3 {[%emt 0:00:00]} e6 {[%emt 0:00:00]} 3. Nf3 {[%emt 0:00:00]} Nf6 {[%emt 0:00:15]} 4. g3 {[%emt 0:00:00]} Be7 {[%emt 0:00:26]} 5. Bg2 {[%emt 0:00:01]} O-O {[%emt 0:00:28]} 6. O-O {[%emt 0:00:14]} c6 {[%emt 0:02:45]} 7. d4 {[%emt 0:05:53]} d5 {[%emt 0:02:05]} 8. cxd5 {[%emt 0:02:54]} exd5 {[%emt 0:01:39]} 9. Bg5 {[%emt 0:02:22]} Qe8 {[%emt 0:06:15]} 10. Ne5 {[%emt 0:04:47]} Qh5 {[%emt 0:06:52]} 11. Bxf6 {[%emt 0:03:58]} Rxf6 {[%emt 0:04:13]} 12. e3 {[%emt 0:04:30]} Qh6 {[%emt 0:03:33]} 13. f4 {[%emt 0:04:43]} g5 {[%emt 0:02:43]} 14. Rf2 {[%emt 0:12:51]} g4 {[%emt 0:01:45]} 15. Rb1 {[%emt 0:02:25]} Qf8 {[%emt 0:06:49]} 16. a3 {[%emt 0:06:10]} Be6 {[%emt 0:18:44]} 17. b4 {[%emt 0:01:02]} Nd7 {[%emt 0:03:16]} 18. Na4 {[%emt 0:03:29]} Rc8 {[%emt 0:03:47]} 19. Nc5 {[%emt 0:03:57]} Bxc5 {[%emt 0:01:29]} 20. bxc5 {[%emt 0:02:46]} Nxe5 {[%emt 0:05:03]} 21. fxe5 {[%emt 0:02:43]} Rf7 {[%emt 0:00:03]} 22. Rfb2 {[%emt 0:01:48]} Rcc7 {[%emt 0:00:11]} 23. Qa4 {[%emt 0:04:47]} a6 {[%emt 0:00:14]} 24. Rb6 {[%emt 0:00:31]} h5 {[%emt 0:00:52]} 25. Qd1 {[%emt 0:04:40]} h4 {[%emt 0:00:19]} 26. Qe1 {[%emt 0:00:22]} Rh7 {[%emt 0:01:39]} 27. R1b2 {[%emt 0:02:16]} Qe7 {[%emt 0:00:07]} 28. Qf2 {[%emt 0:04:17]} Qg5 {[%emt 0:00:29]} 29. Qf4 {[%emt 0:01:53]} Qxf4 {[%emt 0:00:40]} 30. exf4 {[%emt 0:00:42]} h3 {[%emt 0:00:43]} 31. Bf1 {[%emt 0:00:49]} Rhe7 {[%emt 0:00:32]} 32. Bd3 {[%emt 0:01:08]} Kf8 {[%emt 0:00:55]} 33. Kf2 {[%emt 0:00:12]} Kf7 {[%emt 0:00:53]} 34. Ke3 {[%emt 0:00:14]} Kg6 {[%emt 0:02:07]} 35. Kd2 {[%emt 0:00:20]} Bc8 {[%emt 0:03:10]} 36. Kc3 {[%emt 0:00:06]} Kf7 {[%emt 0:00:59]} 37. Kb4 {[%emt 0:00:14]} Ke6 {[%emt 0:06:23]} 38. Ka5 {[%emt 0:00:25]} Rf7 {[%emt 0:00:36]} 39. R6b4 {[%emt 0:03:08]} Rfe7 {[%emt 0:02:07]} 40. Kb6 {[%emt 0:00:47]} Rf7 {[%emt 0:00:24]} 41. Ka5 1/2-1/2

[Event "Schachfestival Open-B 2018"]
[Site "Lueneburg"]
[Date "2018.07.11"]
[Round "5"]
[White "Vahabi, Seyed Reza"]
[Black "Rausch, Darius"]
[Result "0-1"]
[ECO "A48"]
[WhiteElo "1704"]
[BlackElo "1658"]
[Annotator "NA"]
[PlyCount "87"]
[EventDate "2018.07.06"]
[EventType "swiss"]
[EventCountry "GER"]
[SourceTitle "playchess.com"]
[Source "ChessBase"]
[SourceQuality "1"]
[TimeControl "40/5400+30:1800+30"]

1. d4 {[%emt 0:00:00]} Nf6 {[%emt 0:00:00]} 2. Bf4 {[%emt 0:00:00]} g6 {[%emt 0:00:00]} 3. Nf3 {[%emt 0:00:00]} Bg7 {[%emt 0:00:00]} 4. e3 {[%emt 0:00:12]} d6 {[%emt 0:00:00]} 5. Nbd2 {[%emt 0:00:22]} O-O {[%emt 0:00:00]} 6. Bd3 {[%emt 0:00:26]} Nfd7 {[%emt 0:00:03]} 7. Bg5 {[%emt 0:00:45]} h6 {[%emt 0:01:13]} 8. Bh4 {[%emt 0:00:04]} g5 {[%emt 0:00:04]} 9. Bg3 {[%emt 0:00:55]} e5 {[%emt 0:00:10]} 10. Bf5 {[%emt 0:17:27]} Nc6 {[%emt 0:19:34]} 11. h4 {[%emt 0:08:56]} g4 {[%emt 0:04:15]} 12. Nh2 {[%emt 0:13:08]} exd4 {[%emt 0:02:24]} 13. e4 {[%emt 0:04:00]} Nf6 {[%emt 0:08:32]} 14. Bxg4 {[%emt 0:12:52]} Re8 {[%emt 0:03:08]} 15. O-O {[%emt 0:13:44]} Nxe4 {[%emt 0:03:18]} 16. Nxe4 {[%emt 0:00:05]} Rxe4 {[%emt 0:00:12]} 17. Bf3 {[%emt 0:02:08]} Re8 {[%emt 0:01:14]} 18. Qd2 {[%emt 0:03:31]} Qf6 {[%emt 0:09:24]} 19. Rfe1 {[%emt 0:02:01]} Bf5 {[%emt 0:03:43]} 20. Bd5 {[%emt 0:05:41]} Bd7 {[%emt 0:07:41]} 21. Nf3 {[%emt 0:00:51]} Rab8 {[%emt 0:07:29]} 22. Rxe8+ {[%emt 0:00:26]} Rxe8 {[%emt 0:00:05]} 23. Re1 {[%emt 0:00:05]} Rxe1+ {[%emt 0:06:21]} 24. Qxe1 {[%emt 0:00:42]} Qf5 {[%emt 0:01:37]} 25. Be4 {[%emt 0:03:04]} Qe6 {[%emt 0:01:08]} 26. Bxc6 {[%emt 0:01:23]} Qxe1+ {[%emt 0:02:15]} 27. Nxe1 {[%emt 0:00:02]} Bxc6 {[%emt 0:00:16]} 28. Nd3 {[%emt 0:00:30]} Be4 {[%emt 0:01:21]} 29. Bf4 {[%emt 0:01:12]} Kh7 {[%emt 0:01:20]} 30. f3 {[%emt 0:00:34]} Bxd3 {[%emt 0:03:29]} 31. cxd3 {[%emt 0:00:01]} Kg6 {[%emt 0:00:39]} 32. Kf2 {[%emt 0:00:46]} Be5 {[%emt 0:00:37]} 33. Bd2 {[%emt 0:00:47]} c5 {[%emt 0:00:27]} 34. g3 {[%emt 0:00:40]} d5 {[%emt 0:01:02]} 35. f4 {[%emt 0:02:06]} Bf6 {[%emt 0:02:17]} 36. g4 Bxh4+ 37. Kf3 {[%emt 0:01:55]} Bf6 {[%emt 0:01:05]} 38. f5+ Kg7 39. a4 {[%emt 0:01:08]} c4 {[%emt 0:03:07]} 40. dxc4 {[%emt 0:00:03]} dxc4 {[%emt 0:00:04]} 41. Ke4 {[%emt 0:31:03]} b6 {[%emt 0:35:49]} 42. Bb4 {[%emt 0:02:35]} d3 {[%emt 0:01:51]} 43. b3 {[%emt 0:02:43]} Bg5 44. Kf3 0-1